Cogmind - Beta 10.2 @@@ ROGUE MODE // 2021.08.29 @ 20:43:58 Player: Leebears Result: Destroyed by D-53 Grenadier with Mini Grenade Launcher Performance ------------- Evolutions (0) 0 Regions Visited (4) 800 Robots Destroyed (31) 155 Value Destroyed (795) 795 Prototype IDs (7) 140 Alien Tech Used (0) 0 Bonus (-4) -4 TOTAL SCORE: 1886 Bonus ------- Friendly Fire -4 Cogmind --------- Core Integrity 0/250 Matter 64/300 Energy 34/100 System Corruption 4% Temperature Cool (0) Movement Rolling (100) Ox1 Location -9/Mines Parts ------- > --- POWER (1) -------- (None) > --- PROPULSION (2) --- Armored Wheel Armored Wheel > --- UTILITY (2) ------ Large Storage Unit Large Storage Unit > --- WEAPON (2) ------- Light Assault Rifle > --- INVENTORY (16) --- Armored Wheel Armored Wheel Large Storage Unit Signal Interpreter Beam Cannon Beam Cannon Grenade Launcher Peak State ------------ > --- POWER ------------ Light Nuclear Core > --- PROPULSION ------- Improved Treads Improved Treads > --- UTILITY ---------- Large Storage Unit Large Storage Unit > --- WEAPON ----------- EM Pulse Gun Assault Rifle > --- INVENTORY -------- Ion Engine Improved Treads Armored Wheel Armored Wheel Improved Heat Sink Large Storage Unit Signal Interpreter EM Pulse Gun EM Pulse Gun EM Pulse Gun Beam Cannon Beam Cannon Light Assault Rifle Light Assault Rifle Light Assault Rifle Grenade Launcher [Rating: 13] Favorites ----------- Power Light Nuclear Core Engine Ion Engine Power Core Light Nuclear Core Propulsion Improved Treads Treads Improved Treads Wheel Armored Wheel Utility Large Storage Unit Storage Large Storage Unit Weapon EM Pulse Gun Energy Gun EM Pulse Gun Ballistic Gun Assault Rifle Launcher Grenade Launcher Build | -11 -10 -10 -10 -9 ------- Run | Scr Mat Min Exi Min Slots Evolved . | . . . . . Power . | . . . . . Propulsion . | . . . . . Utility . | . . . . . Weapon . | . . . . . Parts Attached 28 | 7 11 . . 10 Power 4 | 1 2 . . 1 Engine 2 | 1 . . . 1 Core 2 | . 2 . . . Reactor . | . . . . . Propulsion 7 | 2 2 . . 3 Treads 5 | 2 2 . . 1 Leg . | . . . . . Wheel 2 | . . . . 2 Hover . | . . . . . Flight . | . . . . . Utility 4 | 2 2 . . . Device . | . . . . . Storage 4 | 2 2 . . . Processor . | . . . . . Hackware . | . . . . . Protection . | . . . . . Artifact . | . . . . . Weapon 13 | 2 5 . . 6 Energy Gun 5 | 1 1 . . 3 Energy Cannon . | . . . . . Ballistic Gun 7 | 1 3 . . 3 Ballistic Cannon . | . . . . . Launcher 1 | . 1 . . . Special Weapon . | . . . . . Impact Weapon . | . . . . . Slashing Weapon . | . . . . . Piercing Weapon . | . . . . . Special Melee Weapon . | . . . . . Unidentified Prototypes . | . . . . . Parts Lost 13 | . 2 . . 11 Power 2 | . . . . 2 Propulsion 3 | . . . . 3 Utility . | . . . . . Weapon 8 | . 2 . . 6 Highest Loss Streak 10 | . 1 . . 10 Average Slot Usage (%) 99 | . 99 100 100 94 Engine 2 | . 4 . . 3 Core 11 | . 9 14 14 8 Treads 27 | . 28 28 28 25 Storage 28 | . 28 28 28 28 Energy Gun 14 | . 13 14 14 15 Ballistic Gun 6 | . 14 . . 3 Launcher 7 | . . 14 14 9 Naked Turns . | . . . . . Heaviest Build 42 | 16 42 42 42 42 Greatest Support 46 | 40 46 46 46 46 Greatest Overweight (x) 1 | . 1 . . . Average Overweight (x) . | . . . . . Largest Inventory Capacity 16 | 8 16 16 16 16 Average Capacity 14 | 6 13 16 16 16 Most Carried 16 | 4 16 16 16 16 Average Carried 13 | 2 10 16 16 14 Final Capacity 16 | 8 16 16 16 16 Final Carried 16 | 4 16 16 16 7 Class Distribution -------------------- 100% | Mutant Dominant Class ---------------- Mutant | -10/Materials Mutant | -10/Mines Mutant | -10/Exiles Mutant | -9/Mines Resources | -11 -10 -10 -10 -9 ----------- Run | Scr Mat Min Exi Min Matter Collected 592 | 259 238 29 . 66 Remotely . | . . . . . Salvage Created 1079 | 61 886 47 . 85 Parts 63 | 3 56 . . 4 Haulers Intercepted 2 | . 2 . . . Recyclers Shooed 1 | . 1 . . . Parts Field Recycled . | . . . . . Retrieved Matter . | . . . . . Parts Self-Destructed . | . . . . . Prevented . | . . . . . Kills | -11 -10 -10 -10 -9 ------- Run | Scr Mat Min Exi Min Combat Hostiles Destroyed 24 | . 16 2 . 6 Guns 12 | . 11 . . 1 AOE 12 | . 5 2 . 5 Classes Destroyed 8 | 1 6 . . 1 Worker 2 | . 2 . . . Builder 1 | . 1 . . . Hauler 2 | . 2 . . . Recycler 2 | 1 1 . . . Watcher 3 | . 3 . . . Swarmer 3 | . 3 . . . Grunt 18 | . 13 2 . 3 Assembled 3 | . . . . 3 Best Kill Streak 7 | 1 7 2 . 3 Combat Bots Only 3 | . 3 2 . 3 Max Kills in Single Turn 2 | 1 2 1 . 2 Gunslinging . | . . . . . Exploded 2 | . 2 1 . 2 Melee . | . . . . . Uniques/NPCs Destroyed . | . . . . . Combat | -11 -10 -10 -10 -9 -------- Run | Scr Mat Min Exi Min Damage Taken 1624 | . 372 34 . 1218 Core 259 | . 34 . . 225 Absorbed by Shields . | . . . . . Core Remaining (%) 100 | 100 . . . . Volleys Fired 85 | 1 55 3 5 21 Largest 2 | 2 2 2 1 2 Hottest 80 | 60 60 70 30 80 Shots Fired 155 | 2 110 6 5 32 Gun 139 | 2 110 3 . 24 Cannon . | . . . . . Launcher 16 | . . 3 5 8 Special . | . . . . . Kinetic 68 | 1 55 . . 12 Thermal . | . . . . . Explosive 16 | . . 3 5 8 Electromagnetic 71 | 1 55 3 . 12 Robot Hit Streak 14 | 1 14 3 . 4 Robot Miss Streak 6 | . 2 1 . 6 Penetration Max . | . . . . . Secondary Targets . | . . . . . Shots Hit Robots 97 | 1 77 4 . 15 Core Hits 69 | 1 42 5 . 21 Critical Hits . | . . . . . Critical Kills . | . . . . . Critical Parts Destroyed . | . . . . . Melee Attacks . | . . . . . Impact . | . . . . . Slashing . | . . . . . Piercing . | . . . . . Sneak Attacks . | . . . . . Combat Hostiles . | . . . . . Follow-up Attacks . | . . . . . Damage Inflicted 2124 | 15 1125 258 . 726 Guns 1040 | 15 872 13 . 140 Cannons . | . . . . . Explosions 1075 | . 244 245 . 586 Melee . | . . . . . Ramming 9 | . 9 . . . Kinetic 384 | . 349 . . 35 Thermal 342 | . 244 98 . . Explosive 733 | . . 147 . 586 Electromagnetic 656 | 15 523 13 . 105 Impact . | . . . . . Slashing . | . . . . . Piercing . | . . . . . Highest Corruption 4 | . 4 4 4 4 Average Corruption 3 | . 3 4 4 4 Corruption Purged . | . . . . . Effects 55 | . 22 4 27 2 Message Errors 11 | . 1 2 8 . Matter Fused 18 | . 9 . 9 . Heat Flow Errors 9 | . 6 1 1 1 Energy Discharges 8 | . 2 . 6 . Data Loss (minor) 5 | . . 1 3 1 Targeting Errors 4 | . 4 . . . Overload Shots . | . . . . . Overflow Damage 18 | . 9 . . 9 Projectiles . | . . . . . Explosions 18 | . 9 . . 9 Melee . | . . . . . Knockbacks 1 | . 1 . . . Impact 1 | . 1 . . . Kinetic . | . . . . . Secondary . | . . . . . Self-Inflicted Damage 32 | . 32 . . . Shots 1 | . 1 . . . Rammed 1 | . 1 . . . Targets Rammed 2 | . 2 . . . Kicked . | . . . . . Crushed 1 | . 1 . . . Highest Temperature 335 | 20 262 163 161 335 Average Temperature 66 | 15 48 112 85 129 Received Heat Transfer 159 | . 126 18 . 15 Effects 2 | . . . . 2 Energy Bleed 1 | . . . . 1 Matter Decay 1 | . . . . 1 Siege Activations . | . . . . . Robots Corrupted . | . . . . . Combat Hostiles . | . . . . . Parts Fried 2 | . 2 . . . Impact Corruptions . | . . . . . Robots Melted . | . . . . . Combat Hostiles . | . . . . . Parts Melted . | . . . . . Heat Transferred 450 | . 350 100 . . Parts Sabotaged . | . . . . . Parts Stolen . | . . . . . Parts Stripped . | . . . . . Power Chain Reactions 3 | . 3 . . . Missiles Intercepted . | . . . . . Alert | -11 -10 -10 -10 -9 ------- Run | Scr Mat Min Exi Min Peak Influence 295 | 5 295 97 . 115 Initial 32 | . 3 32 . . Average 96 | 2 118 46 . 63 Maximum Alert Level 1 | . 1 . . . Low Security (%) 84 | 100 78 100 . 100 Level 1 15 | . 21 . . . Level 2 . | . . . . . Level 3 . | . . . . . Level 4 . | . . . . . Level 5 . | . . . . . High Security . | . . . . . Max Security . | . . . . . Squads Dispatched 2 | . 2 . . . Investigation 2 | . 2 . . . Extermination . | . . . . . Reinforcement . | . . . . . Assault . | . . . . . Garrison . | . . . . . Intercept . | . . . . . Construction Impeded . | . . . . . Haulers Reinforced . | . . . . . Stealth | -11 -10 -10 -10 -9 --------- Run | Scr Mat Min Exi Min Distress Signals . | . . . . . Communications Jammed . | . . . . . Distress Signals . | . . . . . Times Spotted 48 | . 22 1 . 25 Peak Tracking Total 16 | . 3 2 . 16 Tactical Retreats 3 | . 2 . . 1 Traps | -11 -10 -10 -10 -9 ------- Run | Scr Mat Min Exi Min Traps Triggered 3 | . 3 . . . Indirectly . | . . . . . Trap Hack Attempts . | . . . . . Triggered . | . . . . . Disarmed . | . . . . . Reprogrammed . | . . . . . Reused . | . . . . . Traps Extracted . | . . . . . Installed . | . . . . . Triggered . | . . . . . Machines | -11 -10 -10 -10 -9 ---------- Run | Scr Mat Min Exi Min Machines Disabled 6 | . 3 1 2 . Max in Single Turn 2 | . 2 1 1 . Machines Sabotaged . | . . . . . Garrisons Compromised . | . . . . . Overloaded Fab Kills . | . . . . . Fab Network Shutdowns . | . . . . . Hacking | -11 -10 -10 -10 -9 --------- Run | Scr Mat Min Exi Min Machines Accessed 10 | . 7 . 3 . Terminals 7 | . 7 . . . Fabricators . | . . . . . Repair Stations . | . . . . . Recycling Units . | . . . . . Scanalyzers . | . . . . . Garrison Access . | . . . . . Total Hacks 32 | . 29 . 3 . Successful 24 | . 21 . 3 . Failed 8 | . 8 . . . Catastrophic . | . . . . . Database Lockouts . | . . . . . Manual 14 | . 14 . . . Terminals 29 | . 29 . . . Fabricators . | . . . . . Repair Stations . | . . . . . Recycling Units . | . . . . . Scanalyzers . | . . . . . Garrison Access . | . . . . . Terminal Hacks 20 | . 17 . 3 . Record 3 | . . . 3 . Prototype ID Bank 9 | . 9 . . . Alert Level 3 | . 3 . . . Unreport Threat 1 | . 1 . . . Locate Traps 3 | . 3 . . . Hauler Manifests 1 | . 1 . . . Fabricator Hacks . | . . . . . Repair Station Hacks . | . . . . . Recycling Unit Hacks . | . . . . . Scanalyzer . | . . . . . Garrison Access Hacks . | . . . . . Unauthorized Hacks 4 | . 4 . . . Terminals 4 | . 4 . . . Botnet 3 | . 3 . . . Detonate 1 | . 1 . . . Fabricators . | . . . . . Repair Stations . | . . . . . Recycling Units . | . . . . . Scanalyzers . | . . . . . Garrison Access . | . . . . . Data Cores Recovered . | . . . . . Used . | . . . . . Hacking Detections 7 | . 7 . . . Full Trace Events . | . . . . . Feedback Events . | . . . . . Feedback Blocked . | . . . . . Robot Schematics Acquired . | . . . . . Robots Built . | . . . . . Matter . | . . . . . Time . | . . . . . Total Robot Build Rating . | . . . . . Part Schematics Acquired . | . . . . . Parts Built . | . . . . . Matter . | . . . . . Time . | . . . . . Total Part Build Rating . | . . . . . Parts Repaired . | . . . . . Time . | . . . . . Parts Recycled . | . . . . . Recycled Matter . | . . . . . Retrieved Matter . | . . . . . Retrieved Components . | . . . . . Parts Scanalyzed . | . . . . . Part Schematics Acquired . | . . . . . Parts Damaged . | . . . . . Bothacking | -11 -10 -10 -10 -9 ------------ Run | Scr Mat Min Exi Min Used RIF Installer . | . . . . . Robots Hacked . | . . . . . Non-combat . | . . . . . Combat . | . . . . . Robot Hacks Applied . | . . . . . Relay Couplers Released . | . . . . . Robots Rewired . | . . . . . Allies Hacked . | . . . . . Hacks Repelled . | . . . . . Allies | -11 -10 -10 -10 -9 -------- Run | Scr Mat Min Exi Min Total Allies 2 | . . . . 2 Largest Group 2 | . . . . 2 Highest-Rated Group 46 | . . . . 46 Highest-Rated Ally 31 | . . . . 31 Total Orders . | . . . . . Ally Attacks 9 | . . . . 9 Total Damage 85 | . . . . 85 Kills 3 | . . . . 3 Allies Corrupted . | . . . . . Allies Melted . | . . . . . Intel | -11 -10 -10 -10 -9 ------- Run | Scr Mat Min Exi Min Robot Analysis Total . | . . . . . Derelict Logs Recovered 1 | . . 1 . . Drone Launches . | . . . . . Drone Recoveries . | . . . . . Exploration | -11 -10 -10 -10 -9 ------------- Run | Scr Mat Min Exi Min Turns Passed 2697 | 78 1107 232 1135 145 Spaces Moved 1446 | 40 510 140 704 52 Core 2 | 2 . . . . Treads 1444 | 38 510 140 704 52 Legs . | . . . . . Wheels . | . . . . . Hover . | . . . . . Flight . | . . . . . Fastest Speed 50 | 50 160 160 160 160 Average Speed 162 | 154 168 160 160 160 Slowest Speed 180 | 160 180 160 160 160 Overloaded Moves . | . . . . . Propulsion Burnouts . | . . . . . Robots Hopped . | . . . . . Cave-ins Triggered . | . . . . . Exploration Rate (%) 49 | 5 83 48 93 19 Regions Visited 4 Branch Regions 3 Pre-discovered Areas . | . . . . . Known Exits Taken . | . . . . . Unknown Exits Taken 4 | 1 1 1 1 . Scrap Searched . | . . . . . Spaces Dug . | . . . . . Terrain Destroyed 190 | . 12 32 85 61 Melee . | . . . . . Projectile . | . . . . . AOE 190 | . 12 32 85 61 Terrain Rammed . | . . . . . Walls Destroyed . | . . . . . Machines Disabled . | . . . . . Actions | -11 -10 -10 -10 -9 --------- Run | Scr Mat Min Exi Min Total 1641 | 51 657 142 708 83 Wait 49 | . 49 . . . Move 1442 | 39 509 139 703 52 Hop . | . . . . . Pick Up 24 | 4 20 . . . Fast Attach 10 | 7 3 . . . Attach 11 | . 2 . . 9 Detach . | . . . . . Swap 7 | . 6 . . 1 Drop 11 | . 11 . . . Fire 85 | 1 55 3 5 21 Melee . | . . . . . Ram . | . . . . . Kick . | . . . . . Crush 2 | . 2 . . . Escape Stasis . | . . . . . Rewire . | . . . . . Trap . | . . . . . Miscellaneous . | . . . . . Route ------- -11/Scrapyard -10/Materials (discovered 3 exits: [*Mat x2] / [*Min]) -10/Mines -10/Exiles (discovered 2 exits: [*Min x2]) -9/Mines History --------- Turn | Location | Event 18 | -11/Scrapyard | Discovered new exit (range 14) 79 | -11/Scrapyard | Entered Materials 223 | -10/Materials | Discovered new exit (range 12) 308 | -10/Materials | Build established: Mutant 709 | -10/Materials | Discovered new exit (range 10) 1012 | -10/Materials | Discovered new exit (range 14) 1186 | -10/Materials | Entered Mines 1192 | -10/Mines | Met a Derelict bent on vengeance 1249 | -10/Mines | Learned location of 1 exit from Materials 1411 | -10/Mines | Deemed a non-threat by the Exiles lab entrance 1411 | -10/Mines | Discovered new exit (range 5) 1418 | -10/Mines | Entered Exiles 1418 | -10/Exiles | Found Exiles lab abandoned 1447 | -10/Exiles | Discovered new exit (range 15) 2153 | -10/Exiles | Discovered new exit (range 14) 2553 | -10/Exiles | Entered Mines 2619 | -9/Mines | Assembled infested the area 2624 | -9/Mines | Assisted by a Guerilla fighting off Assembled 2675 | -9/Mines | Core integrity fell below 50% 2687 | -9/Mines | Core integrity fell below 20% 2698 | -9/Mines | Destroyed by D-53 Grenadier with Mini Grenade Launcher Last Messages --------------- 02681_ The unstable cave ceiling collapses. 02681_ Imp. Treads destroyed. 02682_ The unstable cave ceiling collapses. 02683_ K-01 Serf collects debris. 02685_ U-05 Engineer builds a Wall. 02685_ Lgt. Assault Rifle destroyed. 02686_ System corrupted: Component data lost. 02686_ The unstable cave ceiling collapses. 02689_ U-05 Engineer builds a Wall. 02690_ The unstable cave ceiling collapses. 02690_ D-53 Grenadier IFF system glitched. 02690_ D-53 Grenadier destroyed. 02690_ K-01 Serf collects debris. 02693_ U-05 Engineer builds a Wall. 02693_ K-01 Serf destroyed. 02696_ The unstable cave ceiling collapses. 02697_ U-05 Engineer builds a Wall. 02698_ The unstable cave ceiling collapses. 02698_ Med. Matter Pod crushed. 02698_ Assault Rifle destroyed. Map ----- +----------------------------------------------------+ | ?????????????????????????????????????????????????? | | ?????????????????????????????????????????????????? | | ??????????????? ????????????????????????????????? | | ??????????????? ????????????????????????????????? | | ??????????????# ##??????????????????????????????? | | ?????????????? #??????????????????????????????? | | ?????????????? #??????????????????????????????? | | ?????????????? #??????????????????????????????? | | ?????????????? ??????????????????????????????? | | ??????????????# #??????????????????????????????? | | ??????????????# ##?????????????????????????????? | | ??????????????# " ?????????????????????????????? | | ?????????????## "%??????????????????????????????? | | ???? ??#????# ##?????????#???????????????????? | | ??# #"## #### ##??????? #???????????????????? | | ??# % # = ##?????? ????????????????????? | | ??# ##????? ????????????????????? | | % #???? ???#????????????????? | | "" = #???? #???# ???????????????? | | ??# ! #???? #???# ???????????????? | | ??## # # ##### ##### ???????????????? | | ???# # # ? ??????????????? | | ???## # d%= # ##?# ??????????????? | | ??????# ! #% #?# ??????????????? | | ????????????## #?# ###???????????? | | ?????????????# @ #?# ##??????????? | | ?????????????# # #??# #??????????? | | ?????????????# ### #??## #??????????? | | ?????????????# #?## # ##???## ##?????????? | | ?????????????# #??## u#???## ##????????? | | ?????????????## ##???###### #???# #????????? | | ??????????????####?????????# #???# ! #????????? | | ???????????????????????????# ##### [ ##???????? | | ???????????????????????????# #???????? | | ???????????????????????????# = #???????? | | ???????????????????????????###### ! ##???????? | | ????????????????????????????????# # #????????? | | ????????????????????????????????## ## #????????? | | ?????????????????????????????????####?###????????? | | | | | | | | | | | | | | | | | | | | | | | +----------------------------------------------------+ Best States ------------- Heat Dissipation 25 Energy Generation 14 Energy Capacity 250 Matter Stores 300 Matter Capacity 300 Sight Range 16 Terrain Scan Density 10 Evasion (%) 40 Recoil Reduction 2 Item Schematics ----------------- None Robot Schematics ------------------ None Fabricated ------------ Nothing Alien Tech Used ----------------- None Achievements -------------- None Challenges ------------ None Game ------ Seed TerrainLightpackMagmablaster Manual? 0 Play Time 00:24:33 Cumulative 636.7 hours Start 2021.08.29 @ 20:19:09 End 2021.08.29 @ 20:43:58 Sessions 1 Manual Loads 0 Difficulty Rogue Special Mode None Game No. 236 Rogue 236 Adventurer 0 Explorer 0 Win Type - Total 22 Types 17/0/2/3/0/0/0/0/0 Lore% 68 Gallery% 81 Achievement% 51 Wizard Run 0 Options --------- ASCII 0 Keyboard 0 Movement Mouse Keybinds 0 Fullscreen 1 Font 18/SmallcapsGlow Map View 76x50 Tactical HUD 1 Map Filters NONE Filters NONE Steam 1 RUN: 2c867cef-d8d1-426c-ac87-d43885717ae8